bitfinex-derivatives/quotes_ETHF0:USTF0_20251216
["timestamp","ask_amount","ask_price","bid_price","bid_amount"]
[1765900377216,0.00507657,2954.9,2954.7,3.2078]
[1765900377412,0.00507657,2954.9,2954.4,5.4935]
[1765900378016,0.00507657,2954.9,2954.8,3.2078]
[1765900378218,0.00507657,2954.9,2954.8,11.1986]
[1765900378509,0.00507657,2954.9,2954.8,7.9908]
[1765900378916,0.00507657,2954.9,2954.8,11.1986]
[1765900379308,3.077e-05,2955.6,2955.3,7.9908]
[1765900379906,40.80003077,2955.6,2955.5,11.1986]
[1765900380111,3.077e-05,2955.6,2955.5,11.1986]
[1765900380309,3.077e-05,2955.6,2955.5,3.2078]
[1765900382811,3.077e-05,2955.6,2955.5,9.2078]
[1765900383011,3.37694,2956.7,2955.6,2.2857]
[1765900383217,19.4308,2957.0,2956.2,2.2857]
[1765900383409,40.8,2956.9,2956.8,4.1092]
[1765900383614,40.8,2956.9,2956.4,3.2078]
[1765900383823,3.5623,2956.5,2956.1,3.2078]
[1765900384019,3.56662527,2956.5,2956.1,3.21191558]
[1765900384221,3.56662527,2956.5,2956.1,0.00411558]
[1765900384416,0.00432527,2956.5,2956.4,10.4738]
[1765900384923,0.00432527,2956.5,2956.1,3.21191558]
[1765900386318,0.00432527,2956.5,2956.4,3.7074]
[1765900386717,0.00432527,2956.5,2956.4,7.266]
[1765900386913,3.56662527,2956.5,2956.1,3.21191558]
[1765900387119,3.5623,2956.2,2956.1,0.00411558]
[1765900387525,3.21212527,2956.5,2956.1,3.71151558]
[1765900387826,3.5623,2956.2,2956.1,0.00411558]
[1765900388022,7.4588,2956.2,2956.1,0.00411558]
[1765900388727,9.6185,2956.2,2956.1,0.00411558]
[1765900389225,25.8225,2956.2,2956.1,0.00411558]
[1765900389617,26.8706,2956.2,2956.1,0.00411558]
[1765900389924,19.4118,2956.2,2956.1,3.71151558]
[1765900390128,23.6628,2956.2,2956.1,0.00411558]
[1765900391316,35.27657,2956.2,2956.1,0.00411558]
[1765900391517,35.27657,2956.2,2956.1,1.558e-05]
[1765900391717,76.07657,2956.2,2956.1,1.558e-05]
[1765900392517,53.87257,2956.2,2956.1,1.558e-05]
[1765900392719,66.86777,2956.2,2956.1,1.558e-05]
[1765900393029,60.73447,2956.2,2956.1,1.558e-05]
[1765900394439,66.09977,2956.2,2956.1,1.558e-05]
[1765900397631,49.89677,2956.2,2956.1,1.558e-05]
[1765900397835,66.09977,2956.2,2956.1,1.558e-05]
[1765900399429,40.8,2956.2,2956.1,10.47381558]
[1765900399731,42.733,2956.2,2956.1,1.558e-05]
[1765900400431,42.90217,2956.2,2956.1,1.558e-05]
[1765900402434,2.1579,2955.6,2955.5,3.2078]
[1765900402632,3.5623,2955.2,2954.8,3.2078]
[1765900402824,19.7643,2955.2,2954.8,3.2078]
[1765900403033,3.5623,2955.8,2955.7,3.7074]
[1765900403232,6.07,2956.0,2955.7,3.7074]
[1765900403432,6.07,2956.0,2955.7,3.71032711]
[1765900404440,6.07,2956.0,2955.9,3.7074]
[1765900404730,3.5623,2955.8,2955.7,0.00292711]
[1765900404936,7.4588,2955.8,2955.7,0.00292711]
[1765900405237,3.5623,2955.8,2955.7,0.00292711]
[1765900405434,3.5623,2955.8,2955.7,3.71032711]
[1765900405636,6.07,2956.0,2955.9,3.7074]
[1765900405838,13.5288,2956.0,2955.7,0.00292711]
[1765900406439,7.4588,2955.8,2955.7,0.00292711]
[1765900407334,16.202,2955.9,2955.8,7.266]
[1765900407534,7.4588,2955.8,2955.7,3.21072711]
[1765900407932,16.20707657,2956.1,2956.0,7.266]
[1765900408232,0.00507657,2956.1,2956.0,8.4352]
[1765900408427,0.00507657,2956.1,2956.0,11.643]
[1765900409436,0.00507657,2956.1,2956.0,10.4738]
[1765900409635,0.00507657,2956.1,2956.0,6.9152]
[1765900409830,3.56737657,2956.1,2956.0,6.9152]
[1765900410134,0.00507657,2956.1,2956.0,6.9152]
[1765900410335,0.00507657,2956.1,2956.0,12.8123]
[1765900411131,3.5623,2955.9,2955.8,2.93070089]
[1765900411333,3.5623,2955.8,2955.7,6.641028]
[1765900411542,16.20607657,2956.1,2955.7,7.26892711]
[1765900412043,0.00507657,2956.1,2956.0,10.4738]
[1765900412939,3.56737657,2956.1,2956.0,6.9152]
[1765900413143,7.46387657,2956.1,2956.0,3.2078]
[1765900414931,3.56737657,2956.1,2955.7,3.21072711]
[1765900415135,0.00507657,2956.1,2956.0,9.9472]
[1765900415339,0.00507657,2956.1,2956.0,11.9751]
[1765900415538,0.00507657,2956.1,2956.0,9.9472]
[1765900415742,0.00507657,2956.1,2956.0,11.9751]
[1765900415940,16.20432527,2956.5,2956.4,6.7394]
[1765900415941,0.00432527,2956.5,2956.4,6.7394]
[1765900416137,0.00432527,2956.5,2956.4,9.9472]
[1765900417546,3.21612527,2956.5,2956.1,3.2078]
[1765900417749,3.21612527,2956.5,2956.4,3.3421]
[1765900417948,0.00432527,2956.5,2956.4,6.7394]
[1765900418739,0.00432527,2956.5,2956.4,9.9472]
[1765900420048,40.8,2957.0,2956.9,6.7394]
[1765900420244,3.2078,2957.9,2957.1,6.7394]
[1765900420449,3.2078,2957.9,2957.2,3.21287657]
[1765900420748,40.8,2957.8,2957.2,3.21287657]
[1765900421047,40.80364923,2957.8,2957.7,3.3421]
[1765900421250,6.5628,2957.3,2957.2,3.21287657]
[1765900421746,10.084,2958.0,2957.2,3.21287657]
[1765900421747,40.8,2959.1,2957.7,6.7394]
[1765900422043,16.196,2958.7,2957.7,6.7394]
[1765900422243,2.004,2959.0,2957.7,6.7394]
[1765900422646,1.78425834,2959.0,2957.8,0.44335524]
[1765900422848,3.2078,2958.9,2958.8,6.7394]
[1765900423037,3.2078,2959.7,2959.1,6.7394]
[1765900423345,6.5628,2959.3,2959.2,0.44335524]
[1765900423540,2.77241705,2959.3,2959.2,0.44335524]
[1765900423850,0.00416449,2959.3,2959.2,0.44335524]
[1765900424048,0.00416449,2959.3,2959.2,9.21065524]
[1765900424749,0.00416449,2959.3,2959.2,3.78545524]
[1765900424939,0.00416449,2959.3,2959.2,0.44335524]
[1765900425144,3.21596449,2959.3,2959.2,0.44335524]
[1765900425340,6.56696449,2959.3,2959.2,0.44335524]
[1765900425546,3.21596449,2959.3,2959.2,0.44335524]
[1765900425754,6.56696449,2959.3,2959.2,0.44335524]
[1765900426149,3.21596449,2959.3,2959.2,0.44335524]
[1765900426648,3.2078,2960.3,2959.2,11.9751]
[1765900426853,5.77821592,2960.3,2959.3,3.2078]
[1765900427052,3.2078,2959.9,2959.3,3.2078]
[1765900427250,3.2078,2960.2,2959.3,3.2078]
[1765900427654,3.21182632,2960.2,2959.6,3.2078]
[1765900428253,3.2118,2959.7,2959.2,5.2357]
[1765900428446,0.00402632,2960.2,2959.6,3.3421]
[1765900428652,0.00402632,2960.2,2960.1,6.7394]
[1765900428851,0.00402632,2960.2,2960.1,6.74312201]
[1765900429053,2.004,2961.0,2960.1,12.74312201]
[1765900429253,3.2078,2961.3,2960.5,3.2078]
[1765900429444,4.8032,2961.0,2960.1,0.00372201]
[1765900429644,4.8032,2961.0,2960.2,3.2078]
[1765900429858,4.8032,2961.0,2960.1,0.00372201]
[1765900430061,3.21192541,2961.0,2960.2,3.2078]
[1765900430246,3.2078,2960.9,2960.2,3.2078]
[1765900430446,0.00412541,2961.0,2960.2,3.2078]
[1765900430759,3.2078,2960.7,2960.2,3.2078]
[1765900430959,0.00412541,2961.0,2960.4,2.0279]
[1765900431655,0.00412541,2961.0,2960.9,6.7394]
[1765900431857,3.2078,2961.1,2961.0,8.7673]
[1765900432049,6.5628,2961.0,2960.7,0.00506791]
[1765900432362,3.2118,2960.5,2959.9,3.2078]
[1765900432856,0.00314151,2960.5,2960.4,8.7673]
[1765900433850,8.055e-05,2960.7,2960.6,6.7394]
[1765900434160,8.055e-05,2960.7,2960.6,9.9472]
[1765900434353,8.055e-05,2960.7,2960.6,15.9472]
[1765900434953,3.985e-05,2960.7,2960.6,18.51761592]
[1765900435149,3.2078,2963.5,2962.2,2.0279]
[1765900435348,0.16877,2963.3,2962.5,3.2078]
[1765900435553,3.37657,2963.3,2962.3,3.2078]
[1765900435759,3.37657,2963.3,2962.2,5.2357]
[1765900436058,3.37895979,2963.3,2962.5,0.00506791]
[1765900436253,1.9665,2962.4,2962.2,0.00341005]
[1765900436459,3.2078,2962.3,2961.2,3.2078]
[1765900436653,3.2078,2962.0,2961.2,3.2078]
[1765900436855,40.8,2961.9,2961.2,3.2078]
[1765900437153,3.2078,2961.6,2961.0,1.2369]
[1765900437353,0.16887,2961.5,2961.0,0.00823307]
[1765900437551,5.78328383,2961.6,2961.0,0.00823307]
[1765900437552,3.2078,2961.3,2961.0,0.00823307]
[1765900438760,3.2078,2961.2,2961.0,0.00823307]
[1765900439065,3.21105898,2961.2,2961.0,0.00823307]
[1765900439862,2.57041592,2961.1,2960.0,3.2078]
[1765900440055,3.2078,2961.0,2960.0,3.2078]
[1765900440258,3.2078,2961.0,2960.1,3.2078]
[1765900440455,0.00325898,2961.2,2960.7,3.2078]
[1765900440654,0.00325898,2961.2,2961.1,3.2078]
[1765900440859,0.00325898,2961.2,2961.1,0.00347869]
[1765900441255,0.00325898,2961.2,2961.1,3.21127869]
[1765900442958,0.00506791,2961.6,2961.1,3.21127869]
[1765900443254,3.2078,2962.6,2961.5,3.2078]
[1765900443462,40.8,2962.7,2962.2,3.2078]
[1765900443662,40.8,2962.7,2961.9,3.2078]
[1765900444058,40.80413198,2962.7,2961.9,3.2078]
[1765900444359,0.00506791,2962.6,2962.4,1.7972]
[1765900444559,3.198e-05,2962.7,2962.5,3.2078]
[1765900445760,3.198e-05,2962.7,2962.1,3.2078]
[1765900446061,0.16883198,2962.7,2962.1,3.2078]
[1765900446456,3.2078,2962.2,2961.5,3.2078]
[1765900446655,2.57041592,2962.1,2961.5,3.2078]
[1765900447363,3.2078,2961.9,2961.2,3.2078]
[1765900447757,3.2078,2961.9,2961.1,0.00347869]
[1765900448455,0.16885,2961.8,2961.1,0.00347869]
[1765900448677,3.2078,2961.6,2961.1,0.00347869]
[1765900449359,2.56681212,2961.4,2960.9,3.20948461]
[1765900449666,2.56681212,2961.0,2960.9,0.00168461]
[1765900450055,4.57760212,2961.0,2960.3,3.2078]
[1765900450364,3.2078,2960.5,2959.7,3.2078]
[1765900450563,3.21066302,2960.5,2960.3,0.00338924]
[1765900451164,3.21066302,2960.5,2960.1,0.00506791]
[1765900451165,1.5649,2960.3,2960.1,0.00506791]
[1765900451369,5.77461212,2960.2,2960.1,0.00506791]
[1765900451864,46.57461212,2960.2,2960.1,0.00506791]
[1765900452067,53.42870847,2960.2,2959.1,3.2078]
[1765900452376,2.56681212,2959.2,2959.1,0.00431457]
[1765900452660,0.85409635,2959.8,2959.1,0.00431457]
[1765900452868,0.85409635,2959.7,2959.2,3.2078]
[1765900453071,2.56681212,2959.8,2959.2,3.21286791]
[1765900453367,1.91808,2959.6,2959.2,0.00506791]
[1765900453562,3.2078,2959.4,2959.2,0.00506791]
[1765900453764,0.85409635,2959.3,2959.2,0.00506791]
[1765900453963,1.78599334,2959.8,2959.2,0.00506791]
[1765900453964,0.85409635,2959.5,2959.2,0.00506791]
[1765900454266,0.85631958,2959.9,2959.3,3.2078]
[1765900454460,3.4231317,2959.8,2959.2,0.00506791]
[1765900454669,3.2078,2959.5,2959.2,0.00506791]
[1765900454865,2.56681212,2959.4,2959.2,0.00506791]
[1765900455167,2.56681212,2959.9,2959.2,0.00506791]
[1765900455365,3.2078,2959.7,2959.2,0.00506791]
[1765900455564,3.42297162,2959.9,2959.3,3.2078]
[1765900455961,0.8561595,2959.9,2959.6,3.2078]
[1765900456169,4.0639595,2960.1,2959.6,3.2078]
[1765900456366,40.8,2960.2,2959.6,3.2078]
[1765900456571,40.8,2960.2,2960.0,3.2078]
[1765900456763,0.00286302,2960.5,2960.0,3.2078]
[1765900456969,0.00286302,2960.5,2960.3,5.005]
[1765900457161,0.00286302,2960.5,2960.0,3.2078]
[1765900457674,3.21066302,2960.5,2959.7,3.2078]
[1765900457876,0.00286302,2960.5,2960.0,3.2078]
[1765900458072,0.00286302,2960.5,2960.3,3.2078]
[1765900458266,0.00286302,2960.5,2960.3,5.005]
[1765900460272,0.00506791,2960.7,2960.3,11.005]
[1765900460474,3.2078,2961.8,2960.6,3.2078]
[1765900460673,40.8,2961.7,2961.1,3.2078]
[1765900460869,0.85651816,2961.6,2961.1,3.2078]
[1765900461274,0.85942802,2961.6,2961.1,3.2078]
[1765900461463,0.86449593,2961.6,2961.1,3.21286791]
[1765900461668,0.00797777,2961.6,2961.1,3.21286791]
[1765900462273,0.00797777,2961.6,2961.4,3.2078]
[1765900462469,0.00797777,2961.6,2961.4,3.21193398]
[1765900463176,0.00797777,2961.6,2961.4,9.21193398]
[1765900463370,0.00797777,2961.6,2961.4,3.21193398]
[1765900464169,40.8,2962.3,2961.4,9.21193398]
[1765900464375,40.8,2962.3,2962.0,3.2078]
[1765900464766,0.16883,2962.2,2961.5,3.2078]
[1765900465074,40.8,2962.3,2961.9,3.2078]
[1765900465280,0.00378214,2962.2,2961.9,3.2078]
[1765900465680,1.78599334,2964.5,2963.4,0.16875]
[1765900465870,0.09974317,2965.0,2964.2,2.56681212]
[1765900466076,0.09974317,2965.0,2963.8,0.7594]
[1765900466593,2.62551425,2965.8,2964.9,3.2078]
[1765900466878,0.00303272,2965.8,2965.0,3.07583569]
[1765900467076,0.00303272,2965.8,2964.9,0.00334996]
[1765900467077,3.272e-05,2965.8,2965.5,2.56681212]
[1765900467279,3.272e-05,2965.8,2965.2,1.7972]
[1765900467280,3.272e-05,2965.8,2965.6,0.50902357]
[1765900467482,3.272e-05,2965.8,2965.7,0.50902357]
[1765900467683,3.272e-05,2965.8,2965.5,2.56681212]
[1765900468077,3.272e-05,2965.8,2965.5,8.56681212]
[1765900468277,1.8419,2968.0,2965.5,11.30226424]
[1765900468479,1.8419,2968.0,2966.2,2.56681212]
[1765900468673,1.8419,2968.0,2965.4,0.00505928]
[1765900468674,40.8,2967.9,2966.4,1.1091]
[1765900468880,43.36681212,2967.9,2966.9,0.00505928]
[1765900469183,43.36681212,2967.9,2964.9,0.17201996]
[1765900469184,0.16856,2966.9,2964.9,0.00334996]
[1765900469391,0.17261507,2966.9,2964.9,0.00334996]
[1765900469781,40.8,2966.8,2964.9,0.00334996]
[1765900470085,0.00503051,2966.3,2965.7,0.00505928]
[1765900471703,0.00503051,2966.3,2965.7,0.00214079]
[1765900475602,0.00503051,2966.3,2966.2,3.2078]
[1765900477305,0.00503051,2966.3,2965.8,3.2078]
[1765900477707,3.2078,2965.9,2965.7,0.00214079]
[1765900478005,0.16862,2965.8,2965.7,4.079e-05]
[1765900478397,0.16866,2965.2,2964.9,0.00334996]
[1765900478703,4.9713,2965.6,2964.9,0.00334996]
[1765900478907,5.13993,2965.6,2964.9,0.00334996]
[1765900479102,3.2078,2965.6,2965.0,3.2078]
[1765900479607,3.2078,2966.1,2965.3,3.2078]
[1765900480001,3.2078,2965.8,2965.0,3.21285928]
[1765900480305,40.8,2965.8,2965.4,3.2078]
[1765900480803,0.00503051,2966.3,2965.7,3.2078]
[1765900480998,0.00503051,2966.3,2965.6,5.20182926]
[1765900480999,0.00503051,2966.3,2966.1,3.2078]
[1765900481501,0.00503051,2966.3,2965.8,3.2078]
[1765900482194,3.21283051,2966.3,2965.8,3.2078]
[1765900482394,0.00503051,2966.3,2966.1,3.2078]
[1765900482800,0.00503051,2966.3,2966.2,3.2078]
[1765900483204,0.00503051,2966.3,2965.7,3.2078]
[1765900483510,0.00503051,2966.3,2965.8,3.2078]
[1765900484705,0.00503051,2966.3,2965.9,3.2078]
[1765900485802,9.21283051,2966.3,2965.3,3.2078]
[1765900486003,3.2078,2965.7,2965.0,3.21285928]
[1765900486208,1.93923,2965.6,2965.0,3.21285928]
[1765900486600,3.2078,2966.0,2965.3,3.2078]
[1765900487002,0.00503051,2966.3,2965.0,3.21285928]
[1765900487003,3.2078,2965.7,2965.0,3.21285928]
[1765900487617,0.00503051,2966.3,2965.6,3.2078]
[1765900488105,0.00503051,2966.3,2965.9,3.2078]
[1765900488811,3.2078,2966.0,2965.2,4.9985]
[1765900489001,3.2078,2966.0,2965.2,3.2078]
[1765900489202,3.2078,2966.0,2965.2,4.9985]
[1765900489614,3.21283051,2966.3,2965.9,1.7907]
[1765900489802,0.00503051,2966.3,2966.2,3.2078]
[1765900490611,3.051e-05,2966.3,2966.2,3.2078]
[1765900491712,3.051e-05,2966.3,2965.9,4.9985]
[1765900492919,3.051e-05,2966.3,2966.2,3.2078]
[1765900494718,3.051e-05,2966.3,2966.2,9.2078]
[1765900494915,3.051e-05,2966.3,2966.2,9.3764]
[1765900495111,3.051e-05,2966.3,2966.2,9.2078]
[1765900495312,0.00405507,2966.9,2966.2,3.2078]
[1765900495518,0.00405507,2966.9,2965.9,1.7907]
[1765900495519,0.00405507,2966.9,2966.6,4.9985]
[1765900496312,4.22189372,2966.8,2966.2,3.2078]
[1765900496513,1.79004841,2966.9,2966.6,4.9985]
[1765900496514,0.84552372,2966.7,2966.6,4.9985]
[1765900496916,0.00405507,2966.9,2966.6,4.9985]
[1765900497616,0.00505928,2967.0,2966.6,4.9985]
[1765900497922,0.84512378,2967.4,2966.9,3.2078]
[1765900498120,40.9685,2967.9,2967.2,3.2078]
[1765900498318,0.84476866,2967.8,2967.2,3.2078]
[1765900498513,3.2078,2967.6,2966.7,3.2078]
[1765900498719,0.84476866,2967.5,2966.7,3.21018406]
[1765900498920,0.84476866,2967.4,2966.7,3.21018406]
[1765900499217,3.2078,2967.2,2966.7,0.00238406]
[1765900499418,3.2078,2966.9,2966.7,0.00238406]
[1765900499624,2.799322,2966.8,2966.7,0.00238406]
[1765900500020,7.01332866,2966.8,2966.7,0.00238406]
[1765900500515,7.01332866,2966.8,2966.5,9.28e-06]
[1765900500516,1.93918,2966.6,2966.5,9.28e-06]
[1765900500717,0.16862,2965.8,2964.7,3.2078]
[1765900500919,3.2078,2965.6,2965.0,3.2078]
[1765900501125,3.2078,2965.3,2964.5,4.9985]
[1765900501321,3.2078,2964.6,2964.5,0.00291748]
[1765900501517,1.7706,2964.5,2963.3,3.2078]
[1765900501816,0.00505928,2964.8,2964.4,3.2078]
[1765900502419,0.00505928,2964.8,2964.4,3.21096785]
[1765900503020,0.00505928,2964.8,2964.7,3.2078]
[1765900503321,0.84949101,2964.8,2964.6,0.00296755]
[1765900503522,0.00505928,2964.8,2964.6,0.00296755]
[1765900503715,0.84422722,2964.7,2964.4,0.00316785]
[1765900503924,0.84422722,2964.6,2964.4,0.00316785]
[1765900504229,0.00505928,2964.8,2964.4,0.00316785]
[1765900504422,0.84398017,2964.7,2964.4,0.00316785]
[1765900504623,0.84398017,2964.6,2964.4,0.00316785]
[1765900504824,0.84400459,2964.5,2964.4,0.00316785]
[1765900505126,4.05180459,2964.5,2964.4,0.00316785]
[1765900505325,6.84400459,2964.5,2964.4,0.00316785]
[1765900505518,6.84400459,2964.5,2963.3,3.2078]
[1765900505718,4.9398,2964.0,2963.3,3.2078]
[1765900505913,4.05180459,2963.9,2963.0,3.2078]
[1765900506121,0.84400459,2963.8,2963.0,3.2078]
[1765900506321,0.84400459,2964.1,2963.3,3.2078]
[1765900506523,3.2078,2964.0,2963.4,0.00505928]
[1765900507329,0.84400459,2964.5,2963.6,3.2078]
[1765900507515,3.2078,2964.1,2963.4,0.00505928]
[1765900507920,0.84400459,2964.6,2963.6,0.00296755]
[1765900508217,4.05180459,2964.5,2963.6,3.2078]
[1765900508419,3.2078,2964.1,2963.6,3.2078]
[1765900508625,40.8,2964.6,2964.0,3.2078]
[1765900508826,3.2078,2964.4,2963.8,1.7618]
[1765900509215,3.2078,2964.4,2963.7,3.2078]
[1765900509528,40.8,2964.6,2964.5,1.7618]
[1765900509529,3.2078,2964.6,2964.5,1.7618]
[1765900509821,0.00358536,2965.3,2964.5,4.9696]
[1765900510025,1.7569,2966.4,2965.2,4.10716755]
[1765900510235,1.7569,2966.4,2966.3,3.2078]
[1765900510720,0.00505928,2966.6,2966.3,3.21076755]
[1765900510920,0.00810448,2966.6,2966.3,3.21173193]
[1765900511122,1.7569,2966.4,2966.3,0.00393193]
[1765900511620,7.7569,2966.4,2966.3,3.193e-05]
[1765900511821,0.16859,2966.3,2965.2,3.2078]
[1765900512027,3.2078,2966.1,2965.2,3.2078]
[1765900512229,3.2078,2966.3,2965.3,0.00296755]
[1765900512429,3.21590448,2966.6,2965.8,3.2078]
[1765900512633,0.00810448,2966.6,2966.2,3.2078]
[1765900512932,0.00810448,2966.6,2966.2,3.2110176]
[1765900513835,0.00810448,2966.6,2966.2,0.0032176]
[1765900514130,1.7569,2966.4,2966.2,0.0032176]
[1765900514740,0.00810448,2966.6,2966.3,0.00296755]
[1765900515326,1.7569,2966.4,2966.2,0.0032176]
[1765900515531,0.00810448,2966.6,2966.2,0.00618515]
[1765900515733,1.7569,2966.4,2966.2,0.0032176]
[1765900515927,1.92549,2966.4,2965.7,3.2078]
[1765900516430,40.8,2966.3,2965.8,0.00296755]
[1765900516820,44.0078,2966.3,2965.8,0.01125421]
[1765900517231,44.0078,2966.3,2965.8,0.00828666]
[1765900517529,0.1686,2966.1,2965.8,0.00828666]
[1765900517929,40.8,2966.3,2966.0,0.00296755]
[1765900518137,1.7569,2966.4,2966.0,0.00296755]
[1765900518742,42.5569,2966.4,2966.0,0.00296755]
[1765900519037,3.2078,2966.3,2966.0,0.00296755]
[1765900519824,3.2078,2966.3,2966.1,0.00296755]
[1765900520229,0.00810448,2966.6,2966.1,0.00296755]
[1765900520431,0.00810448,2966.6,2966.2,3.2078]
[1765900520731,1.76500448,2966.6,2966.1,0.00296755]
[1765900521129,1.76500448,2966.6,2966.3,3.2078]
[1765900521322,1.76500448,2966.6,2966.1,0.00296755]
[1765900521738,1.76500448,2966.6,2966.2,0.00296755]
[1765900521937,1.76500448,2966.6,2966.0,3.21076755]
[1765900522241,1.76500448,2966.6,2966.0,0.00296755]
[1765900522428,1.76500448,2966.6,2966.0,3.21076755]
[1765900522736,0.00810448,2966.6,2966.0,3.21076755]
[1765900523033,0.00810448,2966.6,2966.3,3.2078]
[1765900523538,1.76500448,2966.6,2966.3,3.2078]
[1765900524036,0.00810448,2966.6,2966.3,3.2078]
[1765900524833,1.76500448,2966.6,2966.3,3.2078]
[1765900525533,0.00810448,2966.6,2966.3,3.2078]
[1765900526135,4.48e-06,2966.6,2966.4,6.0]
[1765900526833,4.48e-06,2966.6,2966.3,3.2078]
[1765900527030,4.48e-06,2966.6,2966.3,9.2078]
[1765900527229,4.48e-06,2966.6,2966.3,3.2078]
[1765900527922,1.75690448,2966.6,2966.3,3.2078]
[1765900529436,4.48e-06,2966.6,2966.3,3.2078]
[1765900532128,3.3763,2967.9,2966.3,12.10508313]
[1765900532339,3.3763,2967.9,2967.4,3.2078]
[1765900533038,40.80418384,2967.8,2967.4,3.2078]
[1765900533742,2.7574,2967.5,2967.4,3.2078]
[1765900534542,0.00418384,2967.8,2967.4,3.2078]
[1765900534941,40.8,2967.7,2967.4,3.2078]
[1765900535142,0.00418384,2967.8,2967.4,3.2078]
[1765900535546,2.8806,2967.5,2967.4,3.2078]
[1765900535746,5.5859,2967.4,2967.3,0.00505928]
[1765900535942,1.6965,2967.6,2967.3,3.21285928]
[1765900536142,1.6965,2967.6,2967.5,0.00296755]
[1765900536542,0.00418384,2967.8,2967.7,5.7534]
[1765900536734,0.00505928,2967.9,2967.8,5.7534]
[1765900537046,42.5569,2968.7,2967.8,5.7534]
[1765900537339,2.8806,2968.1,2968.0,3.2078]
[1765900537545,1.6965,2968.2,2968.0,3.2078]
[1765900537744,1.7006482,2968.2,2968.0,3.2101619]
[1765900538644,0.0041482,2968.2,2968.1,5.7534]
[1765900539337,1.7569,2969.4,2968.2,1.5108]
[1765900539535,3.2078,2970.0,2969.1,3.2078]
[1765900539738,3.2078,2970.0,2968.8,1.6386]
[1765900539739,1.6965,2970.1,2969.9,3.2078]
[1765900539943,1.86488,2970.1,2969.7,3.1934494]
[1765900540250,3.2078,2969.9,2969.3,0.00505928]
[1765900540547,0.16839,2969.8,2969.3,0.00802683]
[1765900540748,0.16839,2969.8,2969.3,0.00505928]
[1765900541648,3.2078,2969.5,2969.3,0.00802683]
[1765900541844,0.00345181,2969.9,2969.3,0.00802683]
[1765900542049,3.2078,2969.5,2969.4,0.00296755]
[1765900542246,3.2078,2969.8,2969.4,0.00296755]
[1765900542445,0.00345181,2969.9,2969.4,1.69396755]
[1765900542757,3.2078,2969.7,2969.4,0.00296755]
[1765900542951,3.3762,2969.7,2969.3,0.00505928]
[1765900543143,3.2078,2969.4,2969.3,0.00802683]
[1765900543448,3.2078,2969.4,2969.3,0.00505928]
[1765900543642,10.8741,2969.4,2969.3,0.00505928]
[1765900543843,10.8741,2969.4,2967.8,3.2078]
[1765900544059,3.2078,2968.5,2968.0,0.00532945]
[1765900544244,40.8,2968.4,2968.0,0.00532945]
[1765900544549,3.2078,2968.5,2968.0,1.69632945]
[1765900544752,3.21282862,2968.5,2968.0,1.70137953]
[1765900544941,0.00502862,2968.5,2968.3,3.2078]
[1765900545149,3.2078,2969.4,2968.3,3.2078]
[1765900545348,0.16841,2969.6,2968.9,3.2078]
[1765900545650,40.8,2969.5,2968.9,3.2078]
[1765900545853,3.2078,2969.7,2968.9,3.2078]
[1765900546156,3.2078,2969.7,2968.7,1.691]
[1765900546353,3.2078,2969.4,2968.7,1.691]
[1765900547851,7.47234242,2969.4,2968.3,3.2078]
[1765900548055,4.9043,2968.7,2968.0,3.21521198]
[1765900548260,3.2078,2968.7,2968.2,0.00296755]
[1765900548559,3.2078,2968.9,2968.2,0.00296755]
[1765900548763,3.2078,2968.9,2968.3,3.2078]
[1765900549062,1.71132,2969.4,2968.3,3.2078]
[1765900549063,3.2078,2969.2,2968.3,3.2078]
[1765900549559,3.2078,2968.7,2968.2,0.00296755]
[1765900549755,3.2078,2968.7,2968.4,0.00296755]
[1765900551348,3.37624,2969.0,2968.4,0.00296755]
[1765900551661,40.8,2969.1,2968.4,0.00296755]
[1765900551662,4.786,2968.7,2968.4,0.00296755]
[1765900552061,3.2078,2968.7,2968.4,0.00296755]
[1765900553153,3.2078,2969.0,2968.4,0.00296755]
[1765900553354,3.2078,2968.7,2968.4,0.00296755]
[1765900554557,43.35322242,2969.3,2968.4,0.00296755]
[1765900554558,44.0078,2969.3,2968.6,3.2078]
[1765900554756,3.2078,2969.3,2968.4,0.00296755]
[1765900554953,3.37621,2969.6,2968.4,0.00296755]
[1765900555157,40.8,2969.7,2968.9,3.2078]
[1765900555761,3.2078,2969.6,2968.9,3.2078]
[1765900555961,40.8,2969.7,2969.3,3.2078]
[1765900556157,40.8,2969.7,2969.0,3.2078]
[1765900556358,0.16844,2969.1,2968.8,0.00296755]
[1765900556861,4.5155,2969.4,2968.8,0.00296755]
[1765900557057,3.2078,2969.6,2968.9,3.2078]
[1765900557262,1.44712,2969.4,2968.8,0.00296755]
[1765900557458,1.2787,2969.4,2968.8,0.00296755]
[1765900557773,40.8,2969.5,2968.8,0.00296755]
[1765900558066,3.2078,2969.2,2968.8,0.00296755]
[1765900558462,40.8,2969.5,2969.0,3.2078]
[1765900558659,40.8,2969.5,2968.8,0.00296755]
[1765900558956,3.37621,2969.6,2968.8,0.00296755]
[1765900559268,3.2078,2969.3,2968.9,0.00296755]
[1765900559563,0.16841,2969.5,2968.9,0.00296755]
[1765900560159,3.2078,2969.6,2968.9,0.00296755]
[1765900560363,3.21125181,2969.9,2969.3,3.2078]
[1765900560560,3.21125181,2969.9,2969.4,1.691]
[1765900560760,3.21125181,2969.9,2969.3,3.2078]
[1765900560761,5.76447423,2969.9,2969.0,3.2078]
[1765900561065,3.2078,2969.8,2969.1,3.2078]
[1765900561265,0.00345181,2969.9,2969.6,3.2078]
[1765900561460,3.2078,2970.6,2969.6,5.76102242]
[1765900561768,3.65766242,2970.8,2970.3,3.2078]
[1765900562069,3.65766242,2970.8,2969.8,0.00505008]
[1765900562070,40.8,2971.1,2969.8,0.00505008]
[1765900562264,16.57478813,2971.3,2969.8,0.00505008]
[1765900562468,0.28015068,2971.3,2969.9,2.55322242]
[1765900562670,40.8,2971.2,2969.9,2.55322242]
[1765900562865,0.28015068,2971.3,2970.3,2.55322242]
[1765900562866,0.11184068,2971.3,2970.3,2.55322242]
[1765900563068,0.11184068,2971.3,2970.1,1.691]
[1765900563266,40.8,2971.2,2970.1,1.691]
[1765900563472,0.11184068,2971.3,2970.1,1.691]
[1765900564263,0.11184068,2971.3,2970.3,2.55322242]
[1765900564459,0.11184068,2971.3,2970.1,1.691]
[1765900564460,4.226e-05,2972.2,2971.5,1.6605]